fUST/lending_fUST_20250530
["ID","MTS","AMOUNT","RATE_DAILY","PERIOD"]
[363000581,1748547052269,-300.0,0.00020958,2]
[363000583,1748547052279,-300.0,0.00020958,2]
[363000585,1748547052288,-300.0,0.00020958,2]
[363000587,1748547052297,-5000.0,0.00020958,2]
[363000589,1748547052306,-300.0,0.00020958,2]
[363000591,1748547052315,-300.0,0.00020958,2]
[363000593,1748547052329,-300.0,0.00020958,2]
[363000595,1748547052338,-300.0,0.00020958,2]
[363000597,1748547052347,-300.0,0.00020958,2]
[363000599,1748547052357,-300.0,0.00020958,2]
[363000601,1748547052366,-300.0,0.00020958,2]
[363000603,1748547052375,-300.0,0.00020958,2]
[363000605,1748547052386,-300.0,0.00020958,2]
[363000607,1748547052395,-1784.29744945,0.00021038,4]
[363000609,1748547052404,-1000.0,0.00021068,2]
[363000611,1748547052415,-1000.0,0.00021068,2]
[363000613,1748547052424,-1000.0,0.00021068,2]
[363000615,1748547052433,-1000.0,0.00021068,2]
[363000617,1748547052442,-222.03353951,0.00021068,2]
[363000619,1748547052452,-176.3696131,0.00021068,2]
[363000621,1748547052461,-158.3971896,0.00021068,2]
[363000622,1748547052470,-309.217942,0.00021068,2]
[363000624,1748547052480,-153.0,0.00021068,2]
[363000626,1748547052489,-572.078714,0.00021068,2]
[363000628,1748547052499,-176.3696131,0.00021068,2]
[363000631,1748547052508,-158.3971896,0.00021068,2]
[363000632,1748547052517,-572.078714,0.00021068,2]
[363000634,1748547052526,-153.0,0.00021068,2]
[363000636,1748547052536,-158.3971896,0.00021068,2]
[363000638,1748547052548,-176.3696131,0.00021068,2]
[363000640,1748547052557,-153.0,0.00021068,2]
[363000642,1748547052566,-572.078714,0.00021068,2]
[363000644,1748547052580,-158.3971896,0.00021068,2]
[363000647,1748547052590,-176.3696131,0.00021068,2]
[363000649,1748547052600,-153.0,0.00021068,2]
[363000650,1748547052608,-572.078714,0.00021068,2]
[363000652,1748547052618,-158.3971896,0.00021068,2]
[363000654,1748547052627,-572.078714,0.00021068,2]
[363000656,1748547052636,-175.9693736,0.00021068,2]
[363000658,1748547052646,-319.2538033,0.00021068,2]
[363000660,1748547052655,-572.078714,0.00021068,2]
[363000662,1748547052665,-153.0,0.00021068,2]
[363000664,1748547052674,-158.3971896,0.00021068,2]
[363000666,1748547052683,-158.3971896,0.00021068,2]
[363000668,1748547052693,-444.445632,0.00021068,2]
[363000670,1748547052702,-919.8246648,0.00021068,2]
[363000672,1748547052711,-572.078714,0.00021068,2]
[363000675,1748547052721,-501.0382725,0.00021073,2]
[363000676,1748547052730,-1000.0,0.00021076,2]
[363000678,1748547052740,-1000.0,0.00021076,2]
[363000680,1748547052749,-1000.0,0.00021076,7]
[363000682,1748547052759,-1000.0,0.00021076,7]
[363000685,1748547052768,-1000.0,0.00021076,7]
[363000687,1748547052778,-531.20326199,0.00021079,2]
[363000689,1748547052790,-1000.0,0.0002108,2]
[363000690,1748547052799,-1000.0,0.0002108,7]
[363000692,1748547052808,-1000.0,0.0002108,7]
[363000694,1748547052817,-1000.0,0.0002108,7]
[363000696,1748547052830,-1000.0,0.00021084,2]
[363000698,1748547052839,-1000.0,0.00021084,2]
[363000701,1748547052849,-1000.0,0.00021084,2]
[363000703,1748547052858,-1000.0,0.00021084,7]
[363000704,1748547052868,-1000.0,0.00021084,7]
[363000706,1748547052877,-1000.0,0.00021084,7]
[363000708,1748547052886,-1000.0,0.00021084,7]
[363000710,1748547052895,-1000.0,0.00021084,7]
[363000712,1748547052904,-12660.97845086,0.00021084,7]
[363000714,1748547052913,-212.70147903,0.00021084,7]
[363000716,1748547052923,-842.5625,0.00021084,7]
[363000719,1748547052932,-1000.0,0.00021085,2]
[363000721,1748547052941,-1000.0,0.00021085,2]
[363000723,1748547052951,-1000.0,0.00021085,2]
[363000725,1748547052961,-1000.0,0.00021085,2]
[363000727,1748547052970,-1000.0,0.00021085,7]
[363000729,1748547052979,-1000.0,0.00021085,7]
[363000730,1748547052988,-1000.0,0.00021085,7]
[363000732,1748547052997,-1000.0,0.00021085,7]
[363000734,1748547053006,-1000.0,0.00021085,7]
[363000736,1748547053014,-1000.0,0.00021085,7]
[363000738,1748547053023,-1000.0,0.00021085,7]
[363000740,1748547053031,-1000.0,0.00021085,2]
[363000742,1748547053040,-1000.0,0.00021085,2]
[363000744,1748547053049,-1000.0,0.00021085,7]
[363000746,1748547053057,-1000.0,0.00021085,7]
[363000748,1748547053066,-1000.0,0.00021085,7]
[363000750,1748547053076,-1000.0,0.00021085,2]
[363000752,1748547053085,-1000.0,0.00021085,2]
[363000754,1748547053094,-1000.0,0.00021085,7]
[363000756,1748547053104,-1000.0,0.00021085,7]
[363000758,1748547053113,-1000.0,0.00021085,7]
[363000772,1748547053229,-279.68753212,0.00021085,2]
[363000774,1748547053237,-1000.0,0.00021087,7]
[363000776,1748547053245,-1000.0,0.00021087,2]
[363000779,1748547053254,-1000.0,0.00021087,7]
[363000781,1748547053261,-1000.0,0.00021087,2]
[363000783,1748547053269,-1000.0,0.00021087,7]
[363000784,1748547053276,-1000.0,0.00021087,2]
[363000786,1748547053283,-1000.0,0.00021087,7]
[363000788,1748547053292,-1000.0,0.00021087,2]
[363000790,1748547053301,-1000.0,0.00021087,7]
[363000792,1748547053311,-1000.0,0.00021087,2]
[363000794,1748547053320,-1000.0,0.00021087,7]
[363000796,1748547053331,-1000.0,0.00021087,2]
[363000798,1748547053341,-1000.0,0.00021087,7]
[363000800,1748547053350,-1000.0,0.00021087,2]
[363000802,1748547053359,-1000.0,0.00021087,7]
[363000804,1748547053369,-1000.0,0.00021087,2]
[363000806,1748547053378,-1000.0,0.00021087,7]
[363000808,1748547053389,-1000.0,0.00021087,2]
[363000810,1748547053398,-1000.0,0.00021087,7]
[363000812,1748547053407,-2380.45724693,0.00021087,2]
[363000814,1748547053417,-669.503184,0.00021095,2]
[363000816,1748547053426,-156.788198,0.00021095,2]
[363000818,1748547053435,-669.503184,0.00021095,2]
[363000820,1748547053444,-156.788198,0.00021095,2]
[363000822,1748547053453,-151.0,0.00021095,2]
[363000824,1748547053462,-151.0,0.00021095,2]
[363000826,1748547053471,-515.161945,0.00021095,2]
[363000828,1748547053480,-515.161945,0.00021095,2]
[363000830,1748547053489,-1255.001407,0.00021095,2]
[363000832,1748547053499,-451.51,0.00021095,2]
[363000834,1748547053508,-151.0,0.00021095,2]
[363000836,1748547053517,-184.485682,0.00021095,2]
[363000838,1748547053526,-151.0,0.00021095,2]
[363000840,1748547053535,-1538.9,0.00021095,2]
[363000842,1748547053544,-1553.976724,0.00021095,2]
[363000844,1748547053554,-1553.976724,0.00021095,2]
[363000846,1748547053563,-151.0,0.00021095,2]
[363000849,1748547053576,-177.506068,0.00021095,2]
[363000851,1748547053586,-151.0,0.00021095,2]
[363000853,1748547053595,-151.0,0.00021095,2]
[363000855,1748547053605,-151.0,0.00021095,2]
[363000857,1748547053614,-151.0,0.00021095,2]
[363000859,1748547053624,-151.0,0.00021095,2]
[363000861,1748547053633,-201.864626,0.00021095,2]
[363000862,1748547053642,-201.864626,0.00021095,2]
[363000864,1748547053651,-2259.7,0.00021095,2]
[363000867,1748547053661,-430.0,0.00021095,2]
[363000868,1748547053670,-618.12,0.00021095,2]
[363000870,1748547053680,-241.098971,0.00021095,2]
[363000872,1748547053689,-241.098971,0.00021095,2]
[363000874,1748547053698,-567.8,0.00021095,2]
[363000876,1748547053707,-430.0,0.00021095,2]
[363000878,1748547053716,-430.0,0.00021095,2]
[363000880,1748547053725,-720.0,0.00021095,2]
[363000882,1748547053734,-720.0,0.00021095,2]
[363000884,1748547053744,-720.0,0.00021095,2]
[363000886,1748547053753,-328.95548545,0.00021095,2]
[363000888,1748547053762,-724.76,0.00021095,2]
[363000890,1748547053772,-430.0,0.00021095,2]
[363000892,1748547053781,-430.0,0.00021095,2]
[363000895,1748547053793,-9073.78,0.00021095,2]
[363000896,1748547053803,-430.0,0.00021095,2]
[363000898,1748547053812,-265.44399174,0.00021095,2]
[363000901,1748547053823,-585.51,0.00021095,2]
[363000903,1748547053833,-2539.85,0.00021095,2]
[363000904,1748547053843,-430.0,0.00021095,2]
[363000906,1748547053852,-5598.69,0.00021095,2]
[363000908,1748547053861,-1219.64,0.00021095,2]
[363000911,1748547053872,-817.96,0.00021095,2]
[363000913,1748547053882,-2357.58,0.00021095,2]
[363000914,1748547053891,-469.36,0.00021095,2]
[363000916,1748547053900,-461.92,0.00021095,2]
[363000918,1748547053910,-804.15,0.00021095,2]
[363000921,1748547053919,-634.47,0.00021095,2]
[363000922,1748547053929,-430.0,0.00021095,2]
[363000925,1748547053938,-430.0,0.00021095,2]
[363000927,1748547053949,-547.79,0.00021095,2]
[363000929,1748547053959,-430.0,0.00021095,2]
[363000931,1748547053967,-430.0,0.00021095,2]
[363000933,1748547053977,-3675.07,0.00021095,2]
[363000935,1748547053986,-481.49,0.00021095,2]
[363000937,1748547053995,-1488.94,0.00021095,2]
[363000939,1748547054004,-1406.49,0.00021095,2]
[363000941,1748547054013,-430.0,0.00021095,2]
[363000943,1748547054023,-5245.13,0.00021095,2]
[363000945,1748547054033,-3400.61,0.00021095,2]
[363000946,1748547054043,-7495.44,0.00021095,2]
[363000948,1748547054052,-4715.78,0.00021095,2]
[363000950,1748547054062,-2181.3902696,0.00021095,2]
[363000964,1748547054184,-430.0,0.00019178,2]
[363000966,1748547054193,-430.0,0.00019178,2]
[363000968,1748547054203,-430.0,0.00019178,2]
[363000970,1748547054212,-430.0,0.00019178,2]
[363000972,1748547054222,-430.0,0.00019178,2]
[363000974,1748547054231,-430.0,0.00019452,2]
[363000976,1748547054241,-430.0,0.00019452,2]
[363000978,1748547054251,-430.0,0.00019452,2]
[363000980,1748547054260,-430.0,0.00019726,2]
[363000982,1748547054270,-430.0,0.00019726,2]
[363000984,1748547054280,-188.66,0.0002,2]
[363000987,1748547054289,-797.34,0.00021095,2]
[363000989,1748547054303,-1991.1497304,0.00021095,2]
[363000991,1748547054312,-441.23,0.00021095,2]
[363000993,1748547054324,-151.0,0.00021095,2]
[363000995,1748547054334,-151.0,0.00021095,2]
[363000997,1748547054343,-2722.09,0.00021095,2]
[363000999,1748547054352,-3296.15,0.00021095,2]
[363001001,1748547054361,-2755.29,0.00021095,2]
[363001003,1748547054371,-1573.74424664,0.00021095,2]
[363001005,1748547054387,-430.0,0.00019452,2]
[363001007,1748547054396,-746.80575336,0.00021095,2]
[363001009,1748547054407,-386.03243388,0.00021095,2]
[363001011,1748547054416,-1696.41281854,0.00021095,2]
[363001014,1748547054427,-4949.50460873,0.00021095,2]
[363001016,1748547054438,-1048.79303016,0.00021095,2]
[363001018,1748547054450,-1449.04954257,0.00021095,2]
[363001020,1748547054459,-474.25543598,0.00021095,2]
[363001022,1748547054469,-813.06,0.00021095,2]
[363001024,1748547054479,-945.31,0.00021095,2]
[363001026,1748547054489,-1868.38683581,0.00021095,2]
[363001032,1748547054536,-75.01003212,0.00021095,2]
[363001035,1748547054548,-399.99760524,0.00021095,2]
[363006533,1748547143190,178.91,0.00015316,2]
[363006534,1748547143698,238.54,0.00015982,2]
[363006535,1748547144011,298.18,0.00016648,2]
[363006536,1748547144407,199.60817488,0.00017314,2]
[363006538,1748547214057,171.98,0.00015825,2]
[363006539,1748547285457,159.47,0.000159,2]
[363006540,1748547333783,59365.28210056,0.00024657,120]
[363006541,1748547425464,150.0,0.00014136,2]
[363006542,1748547425930,150.0,0.0001481,2]
[363006549,1748547947151,-1842.75758789,0.00016324,2]
[363006550,1748547953078,-300.64780579,0.00016324,2]
[363006551,1748547953101,-158.75,0.00016468,2]
[363006552,1748547953122,-190.5,0.00017126,2]
[363006553,1748547953145,-222.25,0.00017785,2]
[363006554,1748547953164,-273.11770467,0.00017944,2]
[363006555,1748547957817,-50000.0,0.000248,120]
[363006556,1748548032228,173.82,0.00015145,2]
[363006557,1748548033179,231.76,0.00015803,2]
[363006558,1748548040148,-289.7,0.00016461,2]
[363006559,1748548040172,-347.65,0.0001712,2]
[363006560,1748548040193,-405.59,0.00017778,2]
[363006561,1748548040217,-191.93124233,0.00017944,2]
[363006562,1748548040239,-904.1671584,0.00018142,2]
[363006563,1748548040261,-463.53,0.00018437,2]
[363006564,1748548040283,-361.39418788,0.00019034,2]
[363006565,1748548040305,-223.99512947,0.00019078,2]
[363006566,1748548040327,-521.47,0.00019095,2]
[363006567,1748548040348,-300.0,0.00019131,2]
[363006568,1748548040373,-300.0,0.00019131,2]
[363006569,1748548040396,-212.04148564,0.00019131,2]
[363006570,1748548040417,-987.74420201,0.00019132,2]
[363006571,1748548043096,-1095.30612232,0.00019132,2]
[363006579,1748548145085,-158.83,0.00016457,2]
[363006580,1748548145105,-190.6,0.00017115,2]
[363006581,1748548161152,-222.36,0.00017774,2]
[363006582,1748548161177,-199.04,0.00018432,2]
[363006584,1748548171176,835.694522,0.00013699,2]
[363006585,1748548174118,-179.1961036,0.00019078,2]
[363006586,1748548174140,-159.76,0.00019112,2]
[363006587,1748548174163,-300.0,0.00019133,2]
[363006588,1748548174188,-1758.14562386,0.00019134,2]
[363006622,1748548232624,-160.0,0.00019162,2]
[363006624,1748548232634,-1225.17,0.00019168,3]
[363006626,1748548232644,-612.58,0.00019168,3]
[363006628,1748548232653,-306.29,0.00019168,3]
[363006630,1748548232663,-153.15,0.00019168,3]
[363006632,1748548232673,-459.47,0.00019168,3]
[363006634,1748548232682,-561.28328537,0.00019172,2]
[363006636,1748548232691,-500.0,0.00019173,2]
[363006638,1748548232701,-47916.94967567,0.00019173,2]
[363006640,1748548232711,-321.84318142,0.00019177,2]
[363006642,1748548232720,-321.84318141,0.00019177,2]
[363006644,1748548232730,-430.0,0.00019178,2]
[363006646,1748548232739,-430.0,0.00019178,2]
[363006648,1748548232748,-400.0,0.00019178,2]
[363006650,1748548232758,-400.0,0.00019178,2]
[363006652,1748548232767,-430.0,0.00019178,2]
[363006654,1748548232778,-470.0,0.00019178,2]
[363006656,1748548232788,-401.64651273,0.00019178,2]
[363006658,1748548232797,-430.0,0.00019178,2]
[363006660,1748548232806,-430.0,0.00019178,2]
[363006662,1748548232815,-430.0,0.00019178,2]
[363006664,1748548232825,-470.0,0.00019178,2]
[363006666,1748548232834,-430.0,0.00019178,2]
[363006667,1748548232843,-430.0,0.00019178,2]
[363006668,1748548232852,-256.45124002,0.00019178,2]
[363006669,1748548232861,-430.0,0.00019178,2]
[363006670,1748548232870,-430.0,0.00019178,2]
[363006671,1748548232879,-470.0,0.00019178,2]
[363006672,1748548232888,-430.0,0.00019178,2]
[363006673,1748548232897,-430.0,0.00019178,2]
[363006674,1748548232906,-470.0,0.00019178,2]
[363006675,1748548232915,-430.0,0.00019178,2]
[363006676,1748548232923,-430.0,0.00019178,2]
[363006677,1748548232932,-470.0,0.00019178,2]
[363006678,1748548232941,-430.0,0.00019178,2]
[363006679,1748548232949,-370.0,0.00019178,2]
[363006680,1748548232958,-430.0,0.00019178,2]
[363006681,1748548232967,-430.0,0.00019178,2]
[363006682,1748548232975,-430.0,0.00019178,2]
[363006683,1748548232984,-430.0,0.00019178,2]
[363006684,1748548232993,-470.0,0.00019178,2]
[363006685,1748548233002,-370.0,0.00019178,2]
[363006686,1748548233011,-470.0,0.00019178,2]
[363006687,1748548233020,-430.0,0.00019178,2]
[363006688,1748548233032,-290.0,0.00019178,2]
[363006689,1748548233042,-430.0,0.00019178,2]
[363006690,1748548233051,-430.0,0.00019178,2]
[363006691,1748548233060,-430.0,0.00019178,2]
[363006692,1748548233069,-430.0,0.00019178,2]
[363006693,1748548233078,-430.0,0.00019178,2]
[363006694,1748548233087,-430.0,0.00019178,2]
[363006695,1748548233095,-533.34763631,0.00019178,2]
[363006696,1748548233105,-470.0,0.00019178,2]
[363006697,1748548233114,-430.0,0.00019178,2]
[363006698,1748548233123,-430.0,0.00019178,2]
[363006699,1748548233132,-430.0,0.00019178,2]
[363006700,1748548233141,-430.0,0.00019178,2]
[363006701,1748548233151,-430.0,0.00019178,2]
[363006702,1748548233160,-430.0,0.00019178,2]
[363006703,1748548233170,-430.0,0.00019178,2]
[363006704,1748548233179,-430.0,0.00019178,2]
[363006705,1748548233191,-430.0,0.00019178,2]
[363006706,1748548233202,-430.0,0.00019178,2]
[363006707,1748548233211,-358.21032067,0.00019178,2]
[363006708,1748548233222,-430.0,0.00019178,2]
[363006709,1748548233232,-430.0,0.00019178,2]
[363006710,1748548233241,-430.0,0.00019178,2]
[363006711,1748548233250,-430.0,0.00019178,2]
[363006712,1748548233260,-430.0,0.00019178,2]
[363006713,1748548233270,-430.0,0.00019178,2]
[363006714,1748548233284,-430.0,0.00019178,2]
[363006715,1748548233294,-430.0,0.00019178,2]
[363006716,1748548233303,-430.0,0.00019178,2]
[363006717,1748548233312,-430.0,0.00019178,2]
[363006718,1748548233322,-430.0,0.00019178,2]
[363006719,1748548233331,-436.30636841,0.00019178,2]
[363006720,1748548233341,-430.0,0.00019178,2]
[363006722,1748548233352,-330.0,0.00019178,2]
[363006723,1748548233363,-430.0,0.00019178,2]
[363006724,1748548233373,-155.28984581,0.00019178,2]
[363006725,1748548233382,-430.0,0.00019178,2]
[363006726,1748548233392,-470.0,0.00019178,2]
[363006727,1748548233401,-386.51473594,0.00019178,2]
[363006728,1748548233410,-430.0,0.00019178,2]
[363006729,1748548233420,-430.0,0.00019178,2]
[363006730,1748548233430,-408.90697352,0.00019178,2]
[363006731,1748548233439,-430.0,0.00019178,2]
[363006732,1748548233448,-430.0,0.00019178,2]
[363006733,1748548233458,-430.0,0.00019178,2]
[363006734,1748548233467,-430.0,0.00019178,2]
[363006735,1748548233477,-430.0,0.00019178,2]
[363006736,1748548233487,-454.31507374,0.00019178,2]
[363006737,1748548233496,-430.0,0.00019178,2]
[363006738,1748548233506,-400.0,0.00019178,2]
[363006739,1748548233517,-377.22024138,0.00019178,2]
[363006740,1748548233529,-430.0,0.00019178,2]
[363006741,1748548233539,-470.0,0.00019178,2]
[363006742,1748548233549,-430.0,0.00019178,2]
[363006743,1748548233559,-470.0,0.00019178,2]
[363006744,1748548233570,-430.0,0.00019178,2]
[363006745,1748548233580,-430.0,0.00019178,2]
[363006746,1748548233590,-430.0,0.00019178,2]
[363006747,1748548233600,-319.3155292,0.00019178,2]
[363006748,1748548233610,-430.0,0.00019178,2]
[363006749,1748548233619,-430.0,0.00019178,2]
[363006750,1748548233630,-430.0,0.00019178,2]
[363006751,1748548233640,-470.0,0.00019178,2]
[363006752,1748548233650,-470.0,0.00019178,2]
[363006753,1748548233660,-184.15922151,0.00019178,2]
[363006754,1748548233670,-455.36386898,0.00019178,2]
[363006755,1748548233680,-430.0,0.00019178,2]
[363006756,1748548233689,-430.0,0.00019178,2]
[363006757,1748548233699,-430.0,0.00019178,2]
[363006758,1748548233709,-430.0,0.00019178,2]
[363006759,1748548233718,-430.0,0.00019178,2]
[363006760,1748548233727,-430.0,0.00019178,2]
[363006761,1748548233737,-430.0,0.00019178,2]
[363006762,1748548233747,-430.0,0.00019178,2]
[363006763,1748548233757,-430.0,0.00019178,2]
[363006764,1748548233767,-450.0,0.00019178,2]
[363006765,1748548233777,-430.0,0.00019178,2]
[363006766,1748548233786,-450.0,0.00019178,2]
[363006767,1748548233796,-430.0,0.00019178,2]
[363006768,1748548233805,-430.0,0.00019178,2]
[363006769,1748548233815,-430.0,0.00019178,2]
[363006770,1748548233825,-370.0,0.00019178,2]
[363006771,1748548233835,-430.0,0.00019178,2]
[363006772,1748548233845,-430.0,0.00019178,2]
[363006773,1748548233855,-430.0,0.00019178,2]
[363006774,1748548233864,-430.0,0.00019178,2]
[363006775,1748548233874,-500.0,0.00019178,2]
[363006776,1748548233883,-430.0,0.00019178,2]
[363006777,1748548233893,-2314.44,0.00019178,2]
[363006778,1748548233903,-169.74287815,0.00019178,2]
[363006779,1748548233912,-401.38863642,0.00019178,2]
[363006780,1748548233922,-594.85,0.00019178,2]
[363006781,1748548233931,-430.0,0.00019178,2]
[363006782,1748548233941,-430.0,0.00019178,2]
[363006783,1748548233950,-430.0,0.00019178,2]
[363006784,1748548233960,-430.0,0.00019178,2]
[363006785,1748548233970,-603.76,0.00019178,2]
[363006786,1748548233979,-450.0,0.00019178,2]
[363006787,1748548233988,-430.0,0.00019178,2]
[363006788,1748548233998,-430.0,0.00019178,2]
[363006789,1748548234007,-430.0,0.00019178,2]
[363006790,1748548234016,-430.0,0.00019178,2]
[363006791,1748548234027,-430.0,0.00019178,2]
[363006792,1748548234037,-430.0,0.00019178,2]
[363006793,1748548234047,-430.0,0.00019178,2]
[363006794,1748548234056,-470.0,0.00019178,2]
[363006795,1748548234067,-430.0,0.00019178,2]
[363006796,1748548234076,-430.0,0.00019178,2]
[363006797,1748548234086,-430.0,0.00019178,2]
[363006798,1748548234096,-430.0,0.00019178,2]
[363006799,1748548234105,-450.0,0.00019178,2]
[363006800,1748548234115,-430.0,0.00019178,2]
[363006801,1748548234125,-430.0,0.00019178,2]
[363006802,1748548234134,-430.0,0.00019178,2]
[363006803,1748548234144,-450.0,0.00019178,2]
[363006804,1748548234154,-450.0,0.00019178,2]
[363006805,1748548234163,-340.0,0.00019178,2]
[363006806,1748548234173,-470.0,0.00019178,2]
[363006807,1748548234185,-401.46252826,0.00019178,2]
[363006808,1748548234198,-779.8,0.00019178,2]
[363006809,1748548234208,-779.8,0.00019178,2]
[363006810,1748548234218,-779.8,0.00019178,2]
[363006811,1748548234230,-779.8,0.00019178,2]
[363006812,1748548234239,-779.8,0.00019178,2]
[363006813,1748548234249,-779.8,0.00019178,2]
[363006814,1748548234260,-779.8,0.00019178,2]
[363006815,1748548234270,-779.8,0.00019178,2]
[363006816,1748548234280,-779.8,0.00019178,2]
[363006817,1748548234290,-779.8,0.00019178,2]
[363006818,1748548234300,-779.8,0.00019178,2]
[363006819,1748548234309,-779.8,0.00019178,2]
[363006820,1748548234319,-779.8,0.00019178,2]
[363006821,1748548234328,-779.8,0.00019178,2]
[363006822,1748548234338,-779.8,0.00019178,2]
[363006823,1748548234348,-779.8,0.00019178,2]
[363006824,1748548234357,-779.8,0.00019178,2]
[363006825,1748548234367,-779.8,0.00019178,2]
[363006826,1748548234377,-771.94,0.00019178,2]
[363006827,1748548234387,-450.0,0.00019178,2]
[363006828,1748548234396,-430.0,0.00019178,2]
[363006829,1748548234406,-430.0,0.00019178,2]
[363006830,1748548234417,-430.0,0.00019178,2]
[363006831,1748548234426,-430.0,0.00019178,2]
[363006832,1748548234436,-450.0,0.00019178,2]
[363006833,1748548234446,-450.0,0.00019178,2]
[363006834,1748548234455,-430.0,0.00019178,2]
[363006835,1748548234465,-430.0,0.00019178,2]
[363006836,1748548234581,-450.0,0.00019178,2]
[363006837,1748548234591,-430.0,0.00019178,2]
[363006838,1748548234600,-430.0,0.00019178,2]
[363006839,1748548234609,-430.0,0.00019178,2]
[363006840,1748548234619,-430.0,0.00019178,2]
[363006841,1748548234629,-430.0,0.00019178,2]
[363006842,1748548234638,-430.0,0.00019178,2]
[363006843,1748548234647,-430.0,0.00019178,2]
[363006844,1748548234657,-450.0,0.00019178,2]
[363006845,1748548234666,-480.83,0.00019178,2]
[363006846,1748548234676,-450.0,0.00019178,2]
[363006847,1748548234686,-379.93265487,0.00019178,2]
[363006848,1748548234695,-430.0,0.00019178,2]
[363006849,1748548234704,-430.0,0.00019178,2]
[363006850,1748548234714,-430.0,0.00019178,2]
[363006851,1748548234723,-1985.59,0.00019178,2]
[363006852,1748548234732,-1985.59,0.00019178,2]
[363006853,1748548234741,-1985.59,0.00019178,2]
[363006854,1748548234751,-1985.59,0.00019178,2]
[363006855,1748548234760,-1985.59,0.00019178,2]
[363006856,1748548234769,-1985.59,0.00019178,2]
[363006857,1748548234779,-1985.59,0.00019178,2]
[363006858,1748548234789,-1985.59,0.00019178,2]
[363006859,1748548234798,-1985.59,0.00019178,2]
[363006860,1748548234808,-1985.59,0.00019178,2]
[363006861,1748548234819,-1985.59,0.00019178,2]
[363006862,1748548234829,-1985.59,0.00019178,2]
[363006863,1748548234838,-1985.59,0.00019178,2]
[363006864,1748548234848,-1985.59,0.00019178,2]
[363006865,1748548234857,-1985.59,0.00019178,2]
[363006866,1748548234866,-1985.59,0.00019178,2]
[363006867,1748548234875,-1985.59,0.00019178,2]
[363006868,1748548234885,-1985.59,0.00019178,2]
[363006869,1748548234893,-430.0,0.00019178,2]
[363006870,1748548234903,-430.0,0.00019178,2]
[363006871,1748548234911,-450.0,0.00019178,2]
[363006872,1748548234920,-430.0,0.00019178,2]
[363006873,1748548234929,-430.0,0.00019178,2]
[363006874,1748548234938,-430.0,0.00019178,2]
[363006875,1748548234946,-430.0,0.00019178,2]
[363006876,1748548234955,-160.53613233,0.00019178,2]
[363006877,1748548234964,-430.0,0.00019178,2]
[363006878,1748548234973,-406.5015007,0.00019178,2]
[363006879,1748548234982,-430.0,0.00019178,2]
[363006880,1748548234991,-430.0,0.00019178,2]
[363006881,1748548234999,-430.0,0.00019178,2]
[363006882,1748548235008,-430.0,0.00019178,2]
[363006883,1748548235017,-430.0,0.00019178,2]
[363006884,1748548235026,-430.0,0.00019178,2]
[363006885,1748548235036,-430.0,0.00019178,2]
[363006886,1748548235045,-430.0,0.00019178,2]
[363006887,1748548235054,-430.0,0.00019178,2]
[363006888,1748548235063,-430.0,0.00019178,2]
[363006889,1748548235072,-433.87876234,0.00019178,2]
[363006890,1748548235082,-430.0,0.00019178,2]